Cogmind - Beta 14 @@@ ROGUE MODE // 2025.01.04 @ 15:41:32 Player: jumpy Result: Self-destructed Performance ------------- Evolutions (2) 1000 Regions Visited (4) 800 Robots Destroyed (24) 120 Value Destroyed (706) 706 Prototype IDs (2) 40 Alien Tech Used (0) 0 Bonus (0) 0 TOTAL SCORE: 2666 Bonus ------- None Cogmind --------- Core Integrity 418/550 Matter 172/300 Energy 94/100 System Corruption 0% Temperature Warning (333) Movement Walking (190) Ox1 Location -8/Materials Parts ------- > --- POWER (1) -------- (None) > --- PROPULSION (4) --- Improved Aluminum Leg > --- UTILITY (4) ------ Small Storage Unit Visual Processing Unit Utility Shielding > --- WEAPON (2) ------- Improved Medium Laser Slug Cannon > --- INVENTORY (8) ---- Ion Engine Core Shielding Hardened Light Armor Plating Small Laser Light Assault Rifle Heavy Assault Rifle Grenade Launcher Peak State ------------ > --- POWER ------------ Ion Engine > --- PROPULSION ------- Aluminum Leg Aluminum Leg Improved Aluminum Leg > --- UTILITY ---------- Small Storage Unit Visual Processing Unit Experimental Sensor Array Hardened Light Armor Plating > --- WEAPON ----------- Improved Medium Laser Slug Cannon > --- INVENTORY -------- Ion Engine Core Shielding Small Laser Light Assault Rifle Heavy Assault Rifle Grenade Launcher [Rating: 26] Favorites ----------- Power Ion Engine Engine Ion Engine Propulsion Aluminum Leg Leg Aluminum Leg Utility Small Storage Unit Device Sensor Array Storage Small Storage Unit Processor Visual Processing Unit Protection Hardened Light Armor Plating Weapon Improved Medium Laser Energy Gun Improved Medium Laser Ballistic Gun Assault Rifle Ballistic Cannon Slug Cannon Build | -11 -10 -9 -9 -8 ------- Run | Yrd Mat Mat Min Mat Slots Evolved 4 | . . 2 . 2 Power . | . . . . . Propulsion 2 | . . 2 . . Utility 2 | . . . . 2 Weapon . | . . . . . Parts Attached 30 | 7 5 11 4 3 Power 2 | 1 . 1 . . Engine 2 | 1 . 1 . . Core . | . . . . . Reactor . | . . . . . Propulsion 12 | 2 2 7 1 . Treads . | . . . . . Leg 12 | 2 2 7 1 . Wheel . | . . . . . Hover . | . . . . . Flight . | . . . . . Utility 9 | 1 2 1 2 3 Device 3 | . 1 . 1 1 Storage 1 | 1 . . . . Processor 1 | . . . . 1 Hackware . | . . . . . Protection 4 | . 1 1 1 1 Artifact . | . . . . . Weapon 7 | 3 1 2 1 . Energy Gun 4 | 2 1 1 . . Energy Cannon . | . . . . . Ballistic Gun 2 | 1 . 1 . . Ballistic Cannon 1 | . . . 1 . Launcher . | . . . . . Special Weapon . | . . . . . Impact Weapon . | . . . . . Slashing Weapon . | . . . . . Piercing Weapon . | . . . . . Special Melee Weapon . | . . . . . Unidentified Prototypes 2 | . . 1 1 . Parts Lost 7 | . 1 1 1 4 Power 1 | . . . . 1 Propulsion 3 | . . . 1 2 Utility 2 | . . 1 . 1 Weapon 1 | . 1 . . . Highest Loss Streak 4 | . 1 1 1 4 To Critical Strikes . | . . . . . Average Slot Usage (%) 97 | . 96 99 99 85 Engine 11 | . 14 11 11 8 Leg 37 | . 28 43 43 24 Device 4 | . 9 3 . 8 Storage 11 | . 14 11 11 9 Protection 6 | . 1 7 11 9 Energy Gun 11 | . 14 11 11 9 Ballistic Gun 9 | . 14 11 6 . Ballistic Cannon 1 | . . . 4 9 Peak Build Rating 26 | 6 7 15 25 26 Average Rating 12 | 4 6 13 16 24 On Entrance 8 | . 6 7 15 16 Naked Turns . | . . . . . Heaviest Build 26 | 14 15 21 25 26 Greatest Support 46 | 20 20 46 46 33 Greatest Overweight (x) 1 | 1 . . . . Average Overweight (x) . | . . . . . Largest Inventory Capacity 8 | 8 8 8 8 8 Average Capacity 7 | 6 8 8 8 8 Most Carried 8 | 2 6 8 8 7 Average Carried 6 | 1 4 6 7 6 Final Capacity 8 | 8 8 8 8 8 Final Carried 8 | 2 6 8 8 7 Class Distribution -------------------- 86% | Mutant 13% | Scavenger-Mutant Dominant Class ---------------- Mutant | -10/Materials Mutant | -9/Materials Scavenger-Mutant | -9/Mines Mutant | -8/Materials Resources | -11 -10 -9 -9 -8 ----------- Run | Yrd Mat Mat Min Mat Matter Collected 664 | 184 197 243 40 . Remotely . | . . . . . Salvage Created 825 | . 270 461 62 32 Parts 41 | . 11 22 7 1 Haulers Intercepted . | . . . . . Recyclers Shooed . | . . . . . Parts Field Recycled . | . . . . . Retrieved Matter . | . . . . . Parts Self-Destructed . | . . . . . Prevented . | . . . . . Kills | -11 -10 -9 -9 -8 ------- Run | Yrd Mat Mat Min Mat Combat Hostiles Destroyed 22 | . 5 11 5 1 Guns 19 | . 5 10 4 . Cannons 2 | . . . 1 1 Classes Destroyed 5 | . 2 3 . . Operator 1 | . 1 . . . Watcher 1 | . . 1 . . Swarmer 8 | . . 3 5 . Grunt 11 | . 5 5 . 1 Sentry 3 | . . 3 . . Best Kill Streak 5 | . 2 5 3 1 Combat Bots Only 5 | . 2 5 3 1 Max Kills in Single Turn 2 | . 1 2 1 1 Gunslinging . | . . . . . Exploded . | . . . . . Melee . | . . . . . Uniques/NPCs Destroyed . | . . . . . Combat | -11 -10 -9 -9 -8 -------- Run | Yrd Mat Mat Min Mat Hostile Shots Fired 208 | . 49 60 60 39 Missed 61 | . 18 17 19 7 Damage Taken 1645 | . 375 564 329 377 Core 273 | . 48 67 26 132 Absorbed by Shields . | . . . . . Redirected to Shielding 11 | . . . . 11 Core Remaining (%) 85 | 100 80 . 76 . Volleys Fired 93 | . 32 34 17 10 Largest 2 | . 2 2 2 2 Hottest 104 | . 60 79 104 104 Shots Fired 185 | . 63 68 34 20 Gun 170 | . 63 68 29 10 Cannon 15 | . . . 5 10 Launcher . | . . . . . Special . | . . . . . Kinetic 93 | . 32 34 17 10 Thermal 80 | . 19 34 17 10 Explosive . | . . . . . Electromagnetic 12 | . 12 . . . Robot Hit Streak 10 | . 10 9 4 3 Robot Miss Streak 8 | . 4 2 8 3 Penetration Max . | . . . . . Secondary Targets 5 | . 1 3 1 . Max Gunslinging Chain 1 | . 1 1 1 . Shots Hit Robots 118 | . 41 53 13 11 Core Hits 43 | . 15 20 5 3 Critical Kills . | . . . . . Critical Parts Destroyed 1 | . . . . 1 Critical Strikes 3 | . . 1 1 1 Burn 2 | . . 1 1 . Destroy 1 | . . . . 1 Melee Attacks . | . . . . . Impact . | . . . . . Slashing . | . . . . . Piercing . | . . . . . Sneak Attacks . | . . . . . Combat Hostiles . | . . . . . Follow-up Attacks . | . . . . . Damage Inflicted 1724 | . 481 755 294 194 Guns 1552 | . 481 751 236 84 Cannons 156 | . . . 46 110 Explosions . | . . . . . Melee . | . . . . . Ramming 16 | . . 4 12 . Kinetic 854 | . 253 366 125 110 Thermal 766 | . 140 385 157 84 Explosive . | . . . . . Electromagnetic 88 | . 88 . . . Impact . | . . . . . Slashing . | . . . . . Piercing . | . . . . . Highest Corruption 1 | . 1 . . . Average Corruption 1 | . 1 . . . Corruption Purged . | . . . . . Corruption Blocked . | . . . . . Effects 1 | . 1 . . . Matter Fused 1 | . 1 . . . Overload Shots . | . . . . . Overflow Damage . | . . . . . Projectiles . | . . . . . Explosions . | . . . . . Melee . | . . . . . Knockbacks 3 | . . . . 3 Impact . | . . . . . Kinetic 3 | . . . . 3 Secondary . | . . . . . Self-Inflicted Damage . | . . . . . Shots . | . . . . . Rammed . | . . . . . Targets Rammed 2 | . . 1 1 . Kicked 2 | . . 1 1 . Crushed . | . . . . . Highest Temperature 324 | . 86 233 288 324 Average Temperature 86 | . 37 67 137 144 Received Heat Transfer 648 | . 225 252 . 171 Effects 2 | . . 1 . 1 Energy Bleed 2 | . . 1 . 1 Siege Activations . | . . . . . Robots Corrupted . | . . . . . Combat Hostiles . | . . . . . Parts Fried 1 | . 1 . . . Impact Corruptions . | . . . . . Robots Melted 1 | . . 1 . . Combat Hostiles 1 | . . 1 . . Parts Melted 5 | . . 3 2 . Heat Transferred 1834 | . 325 917 407 185 Parts Sabotaged . | . . . . . Parts Stolen . | . . . . . Parts Stripped . | . . . . . Power Chain Reactions . | . . . . . Alert | -11 -10 -9 -9 -8 ------- Run | Yrd Mat Mat Min Mat Peak Influence 399 | . 145 399 188 124 Initial 77 | . . 61 77 72 Average 137 | . 90 211 143 84 Maximum Alert Level 1 | . . 1 . . Low Security (%) 77 | 100 100 37 100 100 Level 1 22 | . . 62 . . Level 2 . | . . . . . Level 3 . | . . . . . Level 4 . | . . . . . Level 5 . | . . . . . High Security . | . . . . . Max Security . | . . . . . Squads Dispatched 2 | . 1 . . 1 Investigation 1 | . . . . 1 Extermination . | . . . . . Reinforcement 1 | . 1 . . . Assault . | . . . . . Garrison . | . . . . . Intercept . | . . . . . Searches Triggered . | . . . . . Construction Impeded . | . . . . . Haulers Reinforced . | . . . . . Active Scanning Responses . | . . . . . Cargo Convoy Interrupts . | . . . . . Stealth | -11 -10 -9 -9 -8 --------- Run | Yrd Mat Mat Min Mat Distress Signals 1 | . 1 . . . Communications Jammed . | . . . . . Distress Signals . | . . . . . Times Spotted 36 | . 8 13 7 8 Peak Tracking Total 6 | . 2 5 4 6 Tactical Retreats . | . . . . . Traps | -11 -10 -9 -9 -8 ------- Run | Yrd Mat Mat Min Mat Traps Triggered 1 | . 1 . . . Indirectly . | . . . . . Trap Hack Attempts . | . . . . . Triggered . | . . . . . Disarmed . | . . . . . Reprogrammed . | . . . . . Reused . | . . . . . Traps Extracted . | . . . . . Installed . | . . . . . Triggered . | . . . . . Machines | -11 -10 -9 -9 -8 ---------- Run | Yrd Mat Mat Min Mat Machines Disabled 2 | . 1 . . 1 Max in Single Turn 1 | . 1 . . 1 Machines Repaired . | . . . . . Machines Dismantled . | . . . . . Machines Sabotaged . | . . . . . Overloaded Fab Kills . | . . . . . Hacking | -11 -10 -9 -9 -8 --------- Run | Yrd Mat Mat Min Mat Machines Accessed 1 | . . . . 1 Terminals 1 | . . . . 1 Fabricators . | . . . . . Repair Stations . | . . . . . Recycling Units . | . . . . . Scanalyzers . | . . . . . Garrison Access . | . . . . . Total Hacks 3 | . . . . 3 Successful 2 | . . . . 2 Failed 1 | . . . . 1 Catastrophic . | . . . . . Database Lockouts . | . . . . . Manual . | . . . . . Terminals 3 | . . . . 3 Fabricators . | . . . . . Repair Stations . | . . . . . Recycling Units . | . . . . . Scanalyzers . | . . . . . Garrison Access . | . . . . . Terminal Hacks 2 | . . . . 2 Record 2 | . . . . 2 Fabricator Hacks . | . . . . . Repair Station Hacks . | . . . . . Recycling Unit Hacks . | . . . . . Scanalyzer . | . . . . . Garrison Access Hacks . | . . . . . Unauthorized Hacks . | . . . . . Terminals . | . . . . . Fabricators . | . . . . . Repair Stations . | . . . . . Recycling Units . | . . . . . Scanalyzers . | . . . . . Garrison Access . | . . . . . Data Cores Recovered . | . . . . . Used . | . . . . . Hacking Detections 1 | . . . . 1 Full Trace Events 1 | . . . . 1 Feedback Events . | . . . . . Feedback Blocked . | . . . . . Robot Schematics Acquired . | . . . . . Robots Built . | . . . . . Authchips . | . . . . . Time . | . . . . . Total Robot Build Rating . | . . . . . Part Schematics Acquired . | . . . . . Parts Built . | . . . . . Authchips . | . . . . . Time . | . . . . . Total Part Build Rating . | . . . . . Parts Repaired . | . . . . . Time . | . . . . . Parts Recycled . | . . . . . Recycled Matter . | . . . . . Retrieved Matter . | . . . . . Retrieved Components . | . . . . . Parts Scanalyzed . | . . . . . Part Schematics Acquired . | . . . . . Parts Damaged . | . . . . . Bothacking | -11 -10 -9 -9 -8 ------------ Run | Yrd Mat Mat Min Mat Used RIF Installer . | . . . . . Robots Hacked . | . . . . . Non-combat . | . . . . . Combat . | . . . . . Robot Hacks Applied . | . . . . . Relay Couplers Released . | . . . . . Fabnet Peak Effective % . | . . . . . Robots Rewired . | . . . . . Allies Hacked . | . . . . . Hacks Repelled . | . . . . . Allies | -11 -10 -9 -9 -8 -------- Run | Yrd Mat Mat Min Mat Total Allies . | . . . . . Largest Group . | . . . . . Highest-Rated Group . | . . . . . Highest-Rated Ally . | . . . . . Total Orders . | . . . . . Ally Attacks . | . . . . . Total Damage . | . . . . . Kills . | . . . . . Allies Corrupted . | . . . . . Allies Melted . | . . . . . Intel | -11 -10 -9 -9 -8 ------- Run | Yrd Mat Mat Min Mat Robot Analysis Total . | . . . . . Derelict Logs Recovered . | . . . . . Drone Launches . | . . . . . Drone Recoveries . | . . . . . Exploration | -11 -10 -9 -9 -8 ------------- Run | Yrd Mat Mat Min Mat Turns Passed 1209 | 88 333 427 263 98 Spaces Moved 676 | 66 161 240 163 46 Core 7 | 7 . . . . Treads . | . . . . . Legs 669 | 59 161 240 163 46 Wheels . | . . . . . Hover . | . . . . . Flight . | . . . . . Fastest Speed 50 | 50 120 120 120 120 Average Speed 119 | 114 120 120 120 120 Slowest Speed 120 | 120 120 120 120 120 Overloaded Moves . | . . . . . Propulsion Burnouts . | . . . . . Robots Hopped . | . . . . . Cave-ins Triggered . | . . . . . Exploration Rate (%) 24 | 5 40 23 45 10 Regions Visited 4 Branch Regions 1 Pre-discovered Areas . | . . . . . Known Exits Taken . | . . . . . Unknown Exits Taken 4 | 1 1 1 1 . Scrap Searched . | . . . . . Spaces Dug . | . . . . . Terrain Destroyed 3 | . . . 1 2 Melee . | . . . . . Projectile 3 | . . . 1 2 AOE . | . . . . . Terrain Rammed . | . . . . . Walls Destroyed . | . . . . . Machines Disabled . | . . . . . Actions | -11 -10 -9 -9 -8 --------- Run | Yrd Mat Mat Min Mat Total 882 | 74 236 309 195 68 Wait 59 | . 36 9 6 8 Move 672 | 65 160 239 162 46 Hop . | . . . . . Pick Up 16 | 2 3 8 2 1 Fast Attach 9 | 6 1 2 . . Attach 4 | . 1 1 . 2 Detach . | . . . . . Swap 17 | 1 3 8 4 1 Drop 10 | . . 7 3 . Fire 93 | . 32 34 17 10 Melee . | . . . . . Ram . | . . . . . Kick 2 | . . 1 1 . Crush . | . . . . . Escape Stasis . | . . . . . Rewire . | . . . . . Trap . | . . . . . Miscellaneous . | . . . . . Route ------- -11/Scrapyard -10/Materials -9/Materials -9/Mines -8/Materials History --------- Turn | Location | Event 8 | -11/Scrapyard | Discovered new exit (range 16) 89 | -11/Scrapyard | Entered Materials 305 | -10/Materials | Build established: Mutant 413 | -10/Materials | Discovered new exit (range 10) 422 | -10/Materials | Entered another Materials area 422 | -9/Materials | Evolved 2 slots: Propulsion x2 838 | -9/Materials | Discovered new exit (range 10) 849 | -9/Materials | Entered Mines 983 | -9/Mines | A weapon hastily lodged in a ceiling crevice suddenly fell to the ground 1030 | -9/Mines | Found a damaged Exp. Sensor Array with a note attached 1033 | -9/Mines | Found Prototype Device 1034 | -9/Mines | Identified Exp. Sensor Array 1074 | -9/Mines | Discovered new exit (range 14) 1112 | -9/Mines | Entered Materials 1112 | -8/Materials | Evolved 2 slots: Utility x2 1210 | -8/Materials | Self-destructed Last Messages --------------- Investigation squad. 01153_ O-16 Technician: "IFF HANDSHAKE FAILED. SECURING TERMINAL." 01155_ Slug penetrates O-16 Technician. 01155_ O-16 Technician knocked back. 01189_ G-47 Trooper knocked back. 01192_ G-47 Trooper destroyed. 01194_ Critical hit (Burn: +37). 01195_ G-47 Trooper suffers critical hit (Destroy). 01195_ Destroyed Aluminum Leg. 01195_ G-47 Trooper knocked back. 01196_ Aluminum Leg destroyed. 01201_ Repair Station disabled. 01201_ Backup Plating I tumbles out of repair station. 01202_ Exp. Sensor Array destroyed. 01203_ Aluminum Leg destroyed. 01204_ Ion Engine destroyed. 01207_ Backup Power I tumbles out of repair station. 01207_ Backup Laser I tumbles out of repair station. 01208_ Overheating: Energy bleed (-9). 01209_ S-10 Pest destroyed. Map ----- +----------------------------------------------------+ | ?????????????????????????????????????? | | ?????????????????????????????????????? | | ?????????????????????????????????????? | | ?????????????????????????????????????? | | ?????????????????????????????????????? | | ?????????????????????????????????????? | | ?????????????????????????????????????? | | ?????????????????????????????????????? | | ?????????????????????????????????????? | | ?????????????????????????????????????? | | ?????????????????????????????????????? | | ?????????????????????????????????????? | | ?????????????????????????????????????? | | ?????????????????????????????????????? | | ?????????????????????????????????????? | | ????????????????????????? ??????????? | | ???????????????????????? ?????????? | | ??????????????????????? ??????????? | | ??????????????????????? ???????????? | | ??????????????????????? " ??????????? | | ?????????????????????? """ ?????????? | | ?????????????????????? """ ?????????? | | ???????############### """ ?????????? | | ???????#! sg[ # "" ???????? | | ???????# "=[%#! """ ""??????? | | ???????# "R*@# !/ "" ""??????? | | ???????# "!"sg% !/ "" "" ????? | | ???????# *% " " ??? | | ???????# s # ?? | | ???????######## [[ ?? | | ???????# ? # [ ?? | | ???????# ? !# ?? | | ???????#""" ? # ?? | | ########""" + #####+##########???? | | # #""" # #????? ???????????? | | # #?? # #?????? ??????????? | | # #######" #??????? ??????????? | | # ! # % #??????????????????? | | # ! # #??????????????????? | | # # #??????????????????? | | # + ###+####??????????????????? | | # # #?? ????????????????????? | | # ! # #??? ???????????????????? | | # # #??? ??????????????????? | | # #####????/ ????????????????? | | # "T" #???????? #???????????????? | | # #????????? #???????????????? | | ########????????? #???????????????? | | ?????????????????? #???????????????? | | ??????????????????####???????????????? | +----------------------------------------------------+ Best States ------------- Heat Dissipation 31 Energy Generation 10 Energy Capacity 250 Matter Stores 300 Matter Capacity 300 Sight Range 18 Robot Scan Range 20 Terrain Scan Density 10 Armor Coverage 150 Core Shielding 20 Utility Shielding 33 Evasion (%) 55 Item Schematics ----------------- None Robot Schematics ------------------ None Fabricated ------------ Nothing Alien Tech Used ----------------- None Achievements -------------- None Challenges ------------ None Game ------ Seed DimensionalUtilityLog Manual? 0 Play Time 00:16:49 Cumulative 9.8 hours Start 2025.01.04 @ 15:09:55 End 2025.01.04 @ 15:41:32 Sessions 1 Manual Loads 0 Difficulty Rogue Special Mode None Game No. 25 Rogue 25 Adventurer 0 Explorer 0 Win Type - Total 0 Types 0/0/0/0/0/0/0/0/0 Lore% 2 Gallery% 19 Achievement% 16 Wizard Run 0 Options --------- Layout 0 ASCII 0 Keyboard 0 Movement Numpad Keybinds 0 Fullscreen 2 Font 18/Terminus Map View 76x50 Zoom Use 0% Tactical HUD 1 Map Filters NONE Filters NONE Steam 1 RUN: 22b6e0cc-4411-48f0-b122-bbfc4f2799a4